fUST/lending_fUST_20251010
["ID","MTS","AMOUNT","RATE_DAILY","PERIOD"]
[390563736,1760085044790,-176.0,0.00016877,3]
[390563737,1760085044799,-420.48101846,0.00016881,2]
[390563738,1760085044808,-2000.0,0.000169,2]
[390563739,1760085044817,-500.0,0.00016986,2]
[390563740,1760085044826,-734.51,0.00016986,2]
[390563741,1760085044835,-703.91,0.00016986,2]
[390563742,1760085044844,-429.62596749,0.00016986,2]
[390563743,1760085044853,-500.0,0.00016986,2]
[390563744,1760085044862,-500.0,0.00016986,2]
[390563745,1760085044871,-500.0,0.00016986,2]
[390563746,1760085044882,-560.0,0.00016986,2]
[390563747,1760085044892,-500.0,0.00016986,2]
[390563748,1760085044902,-500.0,0.00016986,2]
[390563749,1760085044912,-565.37,0.00016986,2]
[390563750,1760085044922,-500.0,0.00016986,2]
[390563751,1760085044931,-838.24,0.00016986,2]
[390563752,1760085044940,-300.0,0.00016986,2]
[390563753,1760085044950,-500.0,0.00016986,2]
[390563754,1760085044960,-504.11079251,0.00016986,2]
[390563755,1760085044969,-500.69808346,0.00016986,2]
[390563756,1760085044980,-500.0,0.00016986,2]
[390563757,1760085044989,-439.66486777,0.00016986,2]
[390563758,1760085044999,-500.0,0.00016986,2]
[390563759,1760085045009,-500.0,0.00016986,2]
[390563760,1760085045019,-500.0,0.00016986,2]
[390563761,1760085045029,-500.0,0.00016986,2]
[390563762,1760085045039,-500.0,0.00016986,2]
[390563763,1760085045048,-500.0,0.00016986,2]
[390563764,1760085045058,-500.0,0.00016986,2]
[390563765,1760085045068,-500.0,0.00016986,2]
[390563766,1760085045078,-504.20855328,0.00016986,2]
[390563767,1760085045089,-500.0,0.00016986,2]
[390563768,1760085045098,-504.79543064,0.00016986,2]
[390563769,1760085045108,-500.0,0.00016986,2]
[390563770,1760085045122,-500.0,0.00016986,2]
[390563771,1760085045135,-1274.73,0.00016986,2]
[390563772,1760085045146,-500.0,0.00016986,2]
[390563773,1760085045156,-500.0,0.00016986,2]
[390563774,1760085045167,-546.76,0.00016986,2]
[390563775,1760085045177,-500.0,0.00016986,2]
[390563776,1760085045187,-500.0,0.00016986,2]
[390563777,1760085045197,-500.0,0.00016986,2]
[390563778,1760085045206,-500.0,0.00016986,2]
[390563779,1760085045215,-500.0,0.00016986,2]
[390563780,1760085045224,-426.17318788,0.00016986,2]
[390563781,1760085045234,-500.0,0.00016986,2]
[390563782,1760085045243,-500.0,0.00016986,2]
[390563783,1760085045253,-500.0,0.00016986,2]
[390563784,1760085045263,-151.0,0.00016986,2]
[390563785,1760085045273,-500.0,0.00016986,2]
[390563786,1760085045283,-500.0,0.00016986,2]
[390563787,1760085045292,-500.0,0.00016986,2]
[390563788,1760085045302,-880.45,0.00016986,2]
[390563789,1760085045312,-500.0,0.00016986,2]
[390563790,1760085045322,-500.0,0.00016986,2]
[390563791,1760085045332,-500.0,0.00016986,2]
[390563792,1760085045343,-467.14428014,0.00016986,2]
[390563793,1760085045353,-500.0,0.00016986,2]
[390563794,1760085045363,-1022.73,0.00016986,2]
[390563795,1760085045372,-500.0,0.00016986,2]
[390563796,1760085045382,-151.0,0.00016986,2]
[390563797,1760085045391,-152.984232,0.00016986,2]
[390563798,1760085045401,-1078.6,0.00016986,2]
[390563799,1760085045411,-151.0,0.00016986,2]
[390563800,1760085045421,-151.0,0.00016986,2]
[390563801,1760085045431,-151.0,0.00016986,2]
[390563802,1760085045440,-151.0,0.00016986,2]
[390563803,1760085045449,-500.0,0.00016986,2]
[390563804,1760085045459,-155.628286,0.00016986,2]
[390563805,1760085045468,-151.0,0.00016986,2]
[390563806,1760085045478,-425.84197494,0.00016986,2]
[390563807,1760085045488,-151.0,0.00016986,2]
[390563808,1760085045497,-151.0,0.00016986,2]
[390563809,1760085045507,-500.0,0.00016986,2]
[390563810,1760085045517,-151.0,0.00016986,2]
[390563811,1760085045526,-500.0,0.00016986,2]
[390563812,1760085045535,-151.824686,0.00016986,2]
[390563813,1760085045546,-152.994985,0.00016986,2]
[390563814,1760085045555,-151.0,0.00016986,2]
[390563815,1760085045564,-538.49870538,0.00016986,2]
[390563816,1760085045574,-500.0,0.00016986,2]
[390563817,1760085045583,-500.0,0.00016986,2]
[390563818,1760085045592,-151.0,0.00016986,2]
[390563819,1760085045602,-279.947969,0.00016986,2]
[390563821,1760085045611,-500.0,0.00016986,2]
[390563823,1760085045620,-500.0,0.00016986,2]
[390563825,1760085045629,-940.74,0.00016986,2]
[390563826,1760085045638,-500.0,0.00016986,2]
[390563827,1760085045648,-500.0,0.00016986,2]
[390563828,1760085045657,-500.0,0.00016986,2]
[390563829,1760085045667,-500.0,0.00016986,2]
[390563830,1760085045675,-1042.87,0.00016986,2]
[390563831,1760085045685,-356.3752103,0.00016986,2]
[390563832,1760085045694,-500.0,0.00016986,2]
[390563834,1760085045703,-971.43,0.00016986,2]
[390563836,1760085045712,-841.83,0.00016986,2]
[390563837,1760085045724,-151.0,0.00016986,2]
[390563838,1760085045734,-286.06710445,0.00016986,2]
[390563839,1760085045744,-500.0,0.00016986,2]
[390563840,1760085045753,-151.0,0.00016986,2]
[390563841,1760085045762,-500.0,0.00016986,2]
[390563842,1760085045771,-844.89,0.00016986,2]
[390563843,1760085045780,-152.24932598,0.00016986,2]
[390563844,1760085045790,-151.0,0.00016986,2]
[390563845,1760085045799,-151.0,0.00016986,2]
[390563846,1760085045808,-981.97,0.00016986,2]
[390563847,1760085045818,-151.0,0.00016986,2]
[390563848,1760085045827,-189.113488,0.00016986,2]
[390563849,1760085045836,-260.75187693,0.00016986,2]
[390563850,1760085045845,-500.0,0.00016986,2]
[390563851,1760085045854,-504.194854,0.00016986,2]
[390563852,1760085045864,-293.234204,0.00016986,2]
[390563853,1760085045873,-500.0,0.00016986,2]
[390563854,1760085045883,-500.0,0.00016986,2]
[390563855,1760085045893,-151.0,0.00016986,2]
[390563856,1760085045902,-151.0,0.00016986,2]
[390563857,1760085045911,-151.0,0.00016986,2]
[390563858,1760085045921,-500.0,0.00016986,2]
[390563859,1760085045931,-540.39,0.00016986,2]
[390563860,1760085045940,-500.0,0.00016986,2]
[390563862,1760085045949,-151.0,0.00016986,2]
[390563863,1760085045959,-500.0,0.00016986,2]
[390563864,1760085045968,-500.0,0.00016986,2]
[390563865,1760085045978,-274.31233955,0.00016986,2]
[390563866,1760085045987,-500.0,0.00016986,2]
[390563867,1760085045996,-151.0,0.00016986,2]
[390563868,1760085046007,-500.0,0.00016986,2]
[390563870,1760085046018,-1127.21,0.00016986,2]
[390563871,1760085046028,-500.0,0.00016986,2]
[390563872,1760085046040,-499.89020805,0.00016986,2]
[390563873,1760085046051,-1932.57,0.00016986,2]
[390563874,1760085046062,-500.0,0.00016986,2]
[390563875,1760085046072,-500.0,0.00016986,2]
[390563876,1760085046083,-154.020421,0.00016986,2]
[390563877,1760085046093,-184.03435143,0.00016986,2]
[390563878,1760085046103,-186.26162768,0.00016986,2]
[390563879,1760085046112,-151.0,0.00016986,2]
[390563880,1760085046124,-500.0,0.00016986,2]
[390563881,1760085046135,-2474.48,0.00016986,2]
[390563882,1760085046149,-6658.92,0.00016986,2]
[390563883,1760085046159,-746.09,0.00016986,2]
[390563884,1760085046171,-500.0,0.00016986,2]
[390563885,1760085046182,-539.02,0.00016986,2]
[390563886,1760085046193,-500.0,0.00016986,2]
[390563887,1760085046204,-500.0,0.00016986,2]
[390563888,1760085046215,-500.0,0.00016986,2]
[390563889,1760085046225,-151.0,0.00016986,2]
[390563890,1760085046235,-503.5626042,0.00016986,2]
[390563891,1760085046244,-500.0,0.00016986,2]
[390563892,1760085046253,-151.0,0.00016986,2]
[390563893,1760085046262,-500.0,0.00016986,2]
[390563894,1760085046272,-500.0,0.00016986,2]
[390563895,1760085046281,-842.81,0.00016986,2]
[390563896,1760085046290,-694.92,0.00016986,2]
[390563897,1760085046299,-500.0,0.00016986,2]
[390563898,1760085046308,-500.0,0.00016986,2]
[390563899,1760085046318,-1801.63,0.00016986,2]
[390563900,1760085046327,-500.0,0.00016986,2]
[390563901,1760085046336,-500.0,0.00016986,2]
[390563902,1760085046346,-1266.62,0.00016986,2]
[390563903,1760085046355,-500.0,0.00016986,2]
[390563904,1760085046364,-151.0,0.00016986,2]
[390563905,1760085046374,-151.859235,0.00016986,2]
[390563906,1760085046383,-2662.12,0.00016986,2]
[390563907,1760085046393,-151.0,0.00016986,2]
[390563908,1760085046402,-500.0,0.00016986,2]
[390563909,1760085046411,-153.16741,0.00016986,2]
[390563910,1760085046420,-1593.6,0.00016986,2]
[390563911,1760085046430,-151.0,0.00016986,2]
[390563912,1760085046439,-500.0,0.00016986,2]
[390563913,1760085046448,-816.94,0.00016986,2]
[390563914,1760085046457,-500.0,0.00016986,2]
[390563915,1760085046467,-500.0,0.00016986,2]
[390563916,1760085046477,-151.0,0.00016986,2]
[390563917,1760085046486,-500.0,0.00016986,2]
[390563918,1760085046495,-500.0,0.00016986,2]
[390563919,1760085046505,-1921.09,0.00016986,2]
[390563920,1760085046514,-151.0,0.00016986,2]
[390563921,1760085046524,-151.0,0.00016986,2]
[390563922,1760085046534,-500.0,0.00016986,2]
[390563923,1760085046543,-500.0,0.00016986,2]
[390563924,1760085046552,-500.0,0.00016986,2]
[390563925,1760085046561,-500.0,0.00016986,2]
[390563926,1760085046570,-500.0,0.00016986,2]
[390563927,1760085046579,-202.72437659,0.00016986,2]
[390563928,1760085046588,-500.0,0.00016986,2]
[390563929,1760085046597,-655.21,0.00016986,2]
[390563930,1760085046606,-500.0,0.00016986,2]
[390563931,1760085046615,-500.0,0.00016986,2]
[390563932,1760085046625,-916.35,0.00016986,2]
[390563933,1760085046634,-2878.35,0.00016986,2]
[390563934,1760085046643,-1339.93,0.00016986,2]
[390563935,1760085046652,-340.36628464,0.00016986,2]
[390563936,1760085046661,-1186.3,0.00016986,2]
[390563937,1760085046671,-500.0,0.00016986,2]
[390563938,1760085046680,-500.0,0.00016986,2]
[390563939,1760085046689,-477.30020375,0.00016986,2]
[390563940,1760085046699,-827.61,0.00016986,2]
[390563941,1760085046708,-762.18,0.00016986,2]
[390563942,1760085046717,-834.43,0.00016986,2]
[390563943,1760085046726,-1412.58,0.00016986,2]
[390563944,1760085046735,-500.0,0.00016986,2]
[390563945,1760085046746,-151.0,0.00016986,2]
[390563946,1760085046755,-503.81898841,0.00016986,2]
[390563947,1760085046764,-500.0,0.00016986,2]
[390563948,1760085046773,-151.0,0.00016986,2]
[390563949,1760085046782,-151.0,0.00016986,2]
[390563950,1760085046792,-3581.25,0.00016986,2]
[390563951,1760085046801,-500.0,0.00016986,2]
[390563952,1760085046810,-500.0,0.00016986,2]
[390563953,1760085046820,-500.0,0.00016986,2]
[390563954,1760085046829,-500.0,0.00016986,2]
[390563955,1760085046838,-320.003172,0.00016986,2]
[390563956,1760085046847,-151.0,0.00016986,2]
[390563957,1760085046856,-632.45,0.00016986,2]
[390563958,1760085046865,-320.003172,0.00016986,2]
[390563959,1760085046874,-320.003172,0.00016986,2]
[390563960,1760085046884,-320.003172,0.00016986,2]
[390563961,1760085046893,-500.0,0.00016986,2]
[390563962,1760085046902,-658.86,0.00016986,2]
[390563963,1760085046912,-850.3,0.00016986,2]
[390563964,1760085046921,-151.0,0.00016986,2]
[390563965,1760085046930,-151.0,0.00016986,2]
[390563966,1760085046940,-500.0,0.00016986,2]
[390563967,1760085046949,-553.77,0.00016986,2]
[390563968,1760085046958,-500.0,0.00016986,2]
[390563969,1760085046968,-974.65,0.00016986,2]
[390563970,1760085046977,-151.0,0.00016986,2]
[390563971,1760085046986,-500.0,0.00016986,2]
[390563972,1760085046996,-1193.37,0.00016986,2]
[390563973,1760085047005,-667.95,0.00016986,2]
[390563974,1760085047014,-500.0,0.00016986,2]
[390563975,1760085047024,-500.0,0.00016986,2]
[390563976,1760085047034,-500.0,0.00016986,2]
[390563977,1760085047044,-151.0,0.00016986,2]
[390563978,1760085047054,-151.0,0.00016986,2]
[390563979,1760085047065,-151.0,0.00016986,2]
[390563980,1760085047075,-500.0,0.00016986,2]
[390563981,1760085047085,-500.0,0.00016986,2]
[390563982,1760085047095,-151.0,0.00016986,2]
[390563983,1760085047145,-726.2,0.00016986,2]
[390563984,1760085047154,-892.4,0.00016986,2]
[390563985,1760085047164,-500.0,0.00016986,2]
[390563986,1760085047175,-151.0,0.00016986,2]
[390563987,1760085047184,-151.0,0.00016986,2]
[390563988,1760085047193,-500.0,0.00016986,2]
[390563989,1760085047204,-2398.45,0.00016986,2]
[390563990,1760085047213,-3695.74,0.00016986,2]
[390563991,1760085047223,-500.0,0.00016986,2]
[390563992,1760085047232,-1053.67,0.00016986,2]
[390563993,1760085047241,-500.0,0.00016986,2]
[390563994,1760085047251,-500.0,0.00016986,2]
[390563995,1760085047265,-1086.15,0.00016986,2]
[390563996,1760085047274,-500.0,0.00016986,2]
[390563997,1760085047283,-500.0,0.00016986,2]
[390563998,1760085047292,-500.0,0.00016986,2]
[390563999,1760085047302,-789.19,0.00016986,2]
[390564000,1760085047311,-151.0,0.00016986,2]
[390564001,1760085047320,-151.0,0.00016986,2]
[390564002,1760085047329,-500.0,0.00016986,2]
[390564003,1760085047339,-151.0,0.00016986,2]
[390564004,1760085047350,-607.78352749,0.00016986,2]
[390564005,1760085047359,-151.0,0.00016986,2]
[390564006,1760085047369,-791.78,0.00016986,2]
[390564007,1760085047379,-500.0,0.00016986,2]
[390564008,1760085047388,-151.0,0.00016986,2]
[390564009,1760085047404,-500.0,0.00016986,2]
[390564010,1760085047413,-151.0,0.00016986,2]
[390564011,1760085047423,-1753.38,0.00016986,2]
[390564012,1760085047432,-151.0,0.00016986,2]
[390564013,1760085047441,-268.268824,0.00016986,2]
[390564014,1760085047450,-151.0,0.00016986,2]
[390564015,1760085047460,-512.2,0.00016986,2]
[390564016,1760085047469,-839.17,0.00016986,2]
[390564017,1760085047478,-151.0,0.00016986,2]
[390564018,1760085047487,-4738.89,0.00016986,2]
[390564019,1760085047496,-151.0,0.00016986,2]
[390564020,1760085047505,-151.0,0.00016986,2]
[390564021,1760085047515,-151.0,0.00016986,2]
[390564022,1760085047524,-500.0,0.00016986,2]
[390564023,1760085047533,-500.0,0.00016986,2]
[390564024,1760085047542,-628.75,0.00016986,2]
[390564025,1760085047551,-500.0,0.00016986,2]
[390564026,1760085047561,-594.09,0.00016986,2]
[390564027,1760085047570,-500.0,0.00016986,2]
[390564028,1760085047580,-173.963947,0.00016986,2]
[390564029,1760085047590,-173.963947,0.00016986,2]
[390564030,1760085047600,-173.963947,0.00016986,2]
[390564031,1760085047611,-1049.08,0.00016986,2]
[390564032,1760085047620,-500.0,0.00016986,2]
[390564033,1760085047630,-173.963947,0.00016986,2]
[390564034,1760085047639,-151.0,0.00016986,2]
[390564035,1760085047649,-2044.81,0.00016986,2]
[390564036,1760085047659,-151.0,0.00016986,2]
[390564037,1760085047667,-566.06,0.00016986,2]
[390564038,1760085047676,-500.0,0.00016986,2]
[390564039,1760085047685,-5841.31,0.00016986,2]
[390564040,1760085047695,-151.0,0.00016986,2]
[390564041,1760085047704,-728.94,0.00016986,2]
[390564042,1760085047715,-151.0,0.00016986,2]
[390564043,1760085047724,-500.0,0.00016986,2]
[390564044,1760085047734,-500.0,0.00016986,2]
[390564045,1760085047744,-500.0,0.00016986,2]
[390564046,1760085047753,-500.0,0.00016986,2]
[390564047,1760085047762,-1986.39,0.00016986,2]
[390564048,1760085047771,-500.0,0.00016986,2]
[390564049,1760085047781,-563.79,0.00016986,2]
[390564050,1760085047790,-500.0,0.00016986,2]
[390564051,1760085047800,-2000.0,0.00017,2]
[390564052,1760085047809,-4291.06445377,0.00017,3]
[390564053,1760085047819,-267.17935912,0.000171,2]
[390564054,1760085047828,-268.2940422,0.00017113,2]
[390564055,1760085047837,-160.0,0.00017135,2]
[390564056,1760085047846,-234.32063665,0.00017135,2]
[390564057,1760085047855,-417.15472785,0.00017135,2]
[390564058,1760085047864,-160.0,0.00017135,2]
[390564059,1760085047873,-402.20179238,0.00017135,2]
[390564060,1760085047883,-1041.66666667,0.00017135,2]
[390564061,1760085047893,-151.0,0.000172,2]
[390564062,1760085047903,-169.15936193,0.00017259,2]
[390564063,1760085047912,-500.0,0.0001726,2]
[390564064,1760085047922,-734.51,0.0001726,2]
[390564065,1760085047931,-703.91,0.0001726,2]
[390564066,1760085047940,-500.0,0.0001726,2]
[390564067,1760085047949,-500.0,0.0001726,2]
[390564068,1760085047958,-500.0,0.0001726,2]
[390564069,1760085047967,-500.0,0.0001726,2]
[390564070,1760085047976,-240.10402428,0.0001726,2]
[390564071,1760085047986,-565.37,0.0001726,2]
[390564072,1760085047995,-838.24,0.0001726,2]
[390564073,1760085048004,-300.0,0.0001726,2]
[390564074,1760085048014,-500.0,0.0001726,2]
[390564075,1760085048023,-500.0,0.0001726,2]
[390564076,1760085048032,-500.0,0.0001726,2]
[390564077,1760085048042,-500.0,0.0001726,2]
[390564078,1760085048051,-500.0,0.0001726,2]
[390564079,1760085048060,-500.0,0.0001726,2]
[390564080,1760085048070,-399.08096042,0.0001726,2]
[390564081,1760085048079,-500.0,0.0001726,2]
[390564082,1760085048089,-500.0,0.0001726,2]
[390564083,1760085048098,-488.9120231,0.0001726,2]
[390564084,1760085048108,-500.0,0.0001726,2]
[390564085,1760085048117,-514.06567756,0.0001726,2]
[390564086,1760085048132,-1274.73,0.0001726,2]
[390564087,1760085048141,-500.0,0.0001726,2]
[390564088,1760085048151,-500.0,0.0001726,2]
[390564089,1760085048160,-546.76,0.0001726,2]
[390564090,1760085048171,-500.0,0.0001726,2]
[390564091,1760085048181,-500.0,0.0001726,2]
[390564092,1760085048190,-500.0,0.0001726,2]
[390564093,1760085048202,-500.0,0.0001726,2]
[390564094,1760085048211,-500.0,0.0001726,2]
[390564095,1760085048227,-222.98487698,0.0001726,2]
[390564096,1760085048239,-500.0,0.0001726,2]
[390564097,1760085048250,-500.0,0.0001726,2]
[390564098,1760085048260,-500.0,0.0001726,2]
[390564099,1760085048269,-500.0,0.0001726,2]
[390564100,1760085048279,-500.0,0.0001726,2]
[390564101,1760085048288,-880.45,0.0001726,2]
[390564102,1760085048297,-500.0,0.0001726,2]
[390564103,1760085048307,-500.0,0.0001726,2]
[390564104,1760085048316,-500.0,0.0001726,2]
[390564105,1760085048325,-500.0,0.0001726,2]
[390564106,1760085048335,-1022.73,0.0001726,2]
[390564107,1760085048343,-500.0,0.0001726,2]
[390564108,1760085048352,-151.0,0.0001726,2]
[390564109,1760085048361,-1078.6,0.0001726,2]
[390564110,1760085048371,-151.0,0.0001726,2]
[390564111,1760085048380,-151.0,0.0001726,2]
[390564112,1760085048389,-151.0,0.0001726,2]
[390564113,1760085048399,-151.0,0.0001726,2]
[390564114,1760085048408,-500.0,0.0001726,2]
[390564115,1760085048417,-151.0,0.0001726,2]
[390564116,1760085048427,-208.468505,0.0001726,2]
[390564117,1760085048435,-151.0,0.0001726,2]
[390564118,1760085048445,-500.0,0.0001726,2]
[390564119,1760085048454,-500.0,0.0001726,2]
[390564120,1760085048463,-151.0,0.0001726,2]
[390564121,1760085048472,-500.0,0.0001726,2]
[390564122,1760085048482,-434.65899531,0.0001726,2]
[390564123,1760085048491,-151.0,0.0001726,2]
[390564124,1760085048500,-461.63971521,0.0001726,2]
[390564125,1760085048510,-500.0,0.0001726,2]
[390564126,1760085048519,-940.74,0.0001726,2]
[390564127,1760085048528,-500.0,0.0001726,2]
[390564128,1760085048537,-500.0,0.0001726,2]
[390564129,1760085048547,-500.0,0.0001726,2]
[390564130,1760085048556,-500.0,0.0001726,2]
[390564131,1760085048565,-1042.87,0.0001726,2]
[390564132,1760085048575,-500.0,0.0001726,2]
[390564133,1760085048584,-971.43,0.0001726,2]
[390564134,1760085048593,-841.83,0.0001726,2]
[390564135,1760085048602,-161.091796,0.0001726,2]
[390564136,1760085048611,-500.0,0.0001726,2]
[390564137,1760085048621,-500.0,0.0001726,2]
[390564138,1760085048632,-844.89,0.0001726,2]
[390564139,1760085048642,-151.0,0.0001726,2]
[390564140,1760085048659,-151.0,0.0001726,2]
[390564141,1760085048668,-981.97,0.0001726,2]
[390564142,1760085048677,-151.0,0.0001726,2]
[390564143,1760085048686,-500.0,0.0001726,2]
[390564144,1760085048695,-500.0,0.0001726,2]
[390564145,1760085048705,-500.0,0.0001726,2]
[390564146,1760085048714,-155.037749,0.0001726,2]
[390564147,1760085048723,-151.0,0.0001726,2]
[390564148,1760085048732,-151.0,0.0001726,2]
[390564149,1760085048741,-388.48778903,0.0001726,2]
[390564150,1760085048751,-540.39,0.0001726,2]
[390564151,1760085048760,-179.36266348,0.0001726,2]
[390564152,1760085048770,-151.0,0.0001726,2]
[390564153,1760085048779,-500.0,0.0001726,2]
[390564154,1760085048788,-500.0,0.0001726,2]
[390564155,1760085048797,-151.0,0.0001726,2]
[390564156,1760085048806,-227.8891446,0.0001726,2]
[390564157,1760085048816,-1127.21,0.0001726,2]
[390564158,1760085048826,-500.0,0.0001726,2]
[390564159,1760085048835,-1932.57,0.0001726,2]
[390564160,1760085048847,-500.0,0.0001726,2]
[390564161,1760085048861,-500.0,0.0001726,2]
[390564162,1760085048871,-261.392589,0.0001726,2]
[390564163,1760085048880,-500.0,0.0001726,2]
[390564164,1760085048890,-2474.48,0.0001726,2]
[390564165,1760085048901,-6658.92,0.0001726,2]
[390564166,1760085048911,-746.09,0.0001726,2]
[390564167,1760085048920,-504.74424792,0.0001726,2]
[390564168,1760085048929,-539.02,0.0001726,2]
[390564169,1760085048939,-500.0,0.0001726,2]
[390564170,1760085048948,-500.0,0.0001726,2]
[390564171,1760085048958,-500.0,0.0001726,2]
[390564172,1760085048968,-151.0,0.0001726,2]
[390564173,1760085048978,-500.0,0.0001726,2]
[390564174,1760085048987,-151.386704,0.0001726,2]
[390564175,1760085048997,-500.0,0.0001726,2]
[390564176,1760085049007,-500.0,0.0001726,2]
[390564177,1760085049016,-842.81,0.0001726,2]
[390564178,1760085049026,-694.92,0.0001726,2]
[390564179,1760085049036,-500.0,0.0001726,2]
[390564180,1760085049045,-500.0,0.0001726,2]
[390564181,1760085049055,-1801.63,0.0001726,2]
[390564182,1760085049065,-500.0,0.0001726,2]
[390564183,1760085049074,-500.0,0.0001726,2]
[390564184,1760085049083,-1266.62,0.0001726,2]
[390564185,1760085049093,-500.0,0.0001726,2]
[390564186,1760085049103,-151.0,0.0001726,2]
[390564187,1760085049112,-2662.12,0.0001726,2]
[390564188,1760085049123,-151.681857,0.0001726,2]
[390564189,1760085049135,-500.0,0.0001726,2]
[390564190,1760085049144,-1593.6,0.0001726,2]
[390564191,1760085049154,-151.0,0.0001726,2]
[390564192,1760085049166,-500.0,0.0001726,2]
[390564193,1760085049175,-816.94,0.0001726,2]
[390564194,1760085049185,-408.99000757,0.0001726,2]
[390564195,1760085049195,-151.0,0.0001726,2]
[390564196,1760085049206,-500.0,0.0001726,2]
[390564197,1760085049215,-500.0,0.0001726,2]
[390564198,1760085049225,-500.0,0.0001726,2]
[390564199,1760085049234,-1921.09,0.0001726,2]
[390564200,1760085049243,-151.0,0.0001726,2]
[390564201,1760085049252,-151.0,0.0001726,2]
[390564202,1760085049262,-500.0,0.0001726,2]
[390564203,1760085049272,-500.0,0.0001726,2]
[390564204,1760085049281,-500.0,0.0001726,2]
[390564205,1760085049290,-500.0,0.0001726,2]
[390564206,1760085049300,-500.0,0.0001726,2]
[390564207,1760085049310,-500.0,0.0001726,2]
[390564208,1760085049320,-655.21,0.0001726,2]
[390564209,1760085049330,-500.0,0.0001726,2]
[390564210,1760085049339,-500.0,0.0001726,2]
[390564211,1760085049348,-916.35,0.0001726,2]
[390564212,1760085049358,-2878.35,0.0001726,2]
[390564213,1760085049367,-1339.93,0.0001726,2]
[390564214,1760085049377,-1186.3,0.0001726,2]
[390564215,1760085049387,-500.0,0.0001726,2]
[390564216,1760085049397,-500.0,0.0001726,2]
[390564217,1760085049406,-827.61,0.0001726,2]
[390564218,1760085049416,-762.18,0.0001726,2]
[390564219,1760085049426,-834.43,0.0001726,2]
[390564220,1760085049436,-1412.58,0.0001726,2]
[390564221,1760085049447,-327.42377819,0.0001726,2]
[390564222,1760085049457,-151.0,0.0001726,2]
[390564223,1760085049467,-500.0,0.0001726,2]
[390564224,1760085049477,-151.0,0.0001726,2]
[390564225,1760085049487,-151.0,0.0001726,2]
[390564226,1760085049496,-3581.25,0.0001726,2]
[390564227,1760085049505,-500.0,0.0001726,2]
[390564228,1760085049515,-500.0,0.0001726,2]
[390564229,1760085049524,-500.0,0.0001726,2]
[390564230,1760085049534,-500.0,0.0001726,2]
[390564231,1760085049543,-320.003172,0.0001726,2]
[390564232,1760085049552,-152.319799,0.0001726,2]
[390564233,1760085049562,-632.45,0.0001726,2]
[390564234,1760085049571,-320.003172,0.0001726,2]
[390564235,1760085049581,-320.003172,0.0001726,2]
[390564236,1760085049591,-320.003172,0.0001726,2]
[390564237,1760085049600,-500.0,0.0001726,2]
[390564238,1760085049609,-658.86,0.0001726,2]
[390564239,1760085049619,-850.3,0.0001726,2]
[390564240,1760085049628,-153.139071,0.0001726,2]
[390564241,1760085049637,-152.298177,0.0001726,2]
[390564242,1760085049647,-500.0,0.0001726,2]